[Event "*** Titled Tuesday Blitz"]
[Site "Chess.com"]
[Date "2020.11.24"]
[Round "3"]
[White "CraiggoryC"]
[Black "OnePeculiarConundrum"]
[Result "0-1"]
[WhiteElo "2129"]
[BlackElo "2354"]
[TimeControl "180+1"]
[EndTime "10:44:31 PST"]
[Termination "OnePeculiarConundrum won on time"]

1. e4 {[%clk 0:03:00.9]} 1... c5 {[%clk 0:02:59.9]} 2. Nf3 {[%clk 0:03:01]} 2...
d6 {[%clk 0:02:59.9]} 3. d4 {[%clk 0:03:01.6]} 3... cxd4 {[%clk 0:02:59.9]} 4.
Nxd4 {[%clk 0:03:02.5]} 4... Nf6 {[%clk 0:02:59.9]} 5. Nc3 {[%clk 0:03:03.2]}
5... a6 {[%clk 0:03:00.3]} 6. Be3 {[%clk 0:03:03.7]} 6... e6 {[%clk 0:03:00.4]}
7. g4 {[%clk 0:03:02.8]} 7... Be7 {[%clk 0:03:00.2]} 8. g5 {[%clk 0:03:01.4]}
8... Nfd7 {[%clk 0:03:00.4]} 9. Qh5 {[%clk 0:03:00]} 9... g6 {[%clk 0:02:58.6]}
10. Qg4 {[%clk 0:02:54.6]} 10... Ne5 {[%clk 0:02:56.6]} 11. Qg2 {[%clk
0:02:52.4]} 11... b5 {[%clk 0:02:55.8]} 12. f4 {[%clk 0:02:44.5]} 12... Ned7
{[%clk 0:02:55.3]} 13. f5 {[%clk 0:02:33.5]} 13... e5 {[%clk 0:02:46.2]} 14. f6
{[%clk 0:02:12.4]} 14... exd4 {[%clk 0:02:43.8]} 15. fxe7 {[%clk 0:02:11.8]}
15... Qxe7 {[%clk 0:02:43.3]} 16. Bxd4 {[%clk 0:02:11.9]} 16... Ne5 {[%clk
0:02:33.6]} 17. Nd5 {[%clk 0:02:09]} 17... Qb7 {[%clk 0:02:20.5]} 18. Nf6+
{[%clk 0:01:51.2]} 18... Ke7 {[%clk 0:02:13]} 19. Bxe5 {[%clk 0:01:41.3]} 19...
dxe5 {[%clk 0:02:12.3]} 20. O-O-O {[%clk 0:01:41.1]} 20... Be6 {[%clk
0:02:07.2]} 21. Kb1 {[%clk 0:01:30]} 21... Nc6 {[%clk 0:02:04.5]} 22. Nd5+
{[%clk 0:01:21.1]} 22... Kf8 {[%clk 0:02:01.2]} 23. Qf2 {[%clk 0:01:15.9]} 23...
Rd8 {[%clk 0:01:53.9]} 24. h4 {[%clk 0:00:55.1]} 24... Rg8 {[%clk 0:01:13.5]}
25. Bh3 {[%clk 0:00:39.3]} 25... Bxh3 {[%clk 0:01:11.4]} 26. Rxh3 {[%clk
0:00:38.5]} 26... Ne7 {[%clk 0:01:04.7]} 27. Qf6 {[%clk 0:00:21.7]} 27... Re8
{[%clk 0:01:02]} 28. Nb6 {[%clk 0:00:11.4]} 28... Rg7 {[%clk 0:00:46.2]} 29.
Nd7+ {[%clk 0:00:08.9]} 29... Kg8 {[%clk 0:00:46.1]} 30. Nxe5 {[%clk 0:00:09]}
30... Qxe4 {[%clk 0:00:41.5]} 31. Rhd3 {[%clk 0:00:07.6]} 31... Qa8 {[%clk
0:00:18.7]} 32. Nd7 {[%clk 0:00:01.6]} 32... Nf5 {[%clk 0:00:16.8]} 0-1

[Event "*** Titled Tuesday Blitz"]
[Site "Chess.com"]
[Date "2020.11.24"]
[Round "3"]
[White "IANOV0007"]
[Black "vovachesss"]
[Result "0-1"]
[WhiteElo "2398"]
[BlackElo "2667"]
[TimeControl "180+1"]
[EndTime "10:44:35 PST"]
[Termination "vovachesss won by resignation"]

1. Nf3 {[%clk 0:03:00.9]} 1... Nc6 {[%clk 0:02:58.3]} 2. g3 {[%clk 0:03:00.1]}
2... e5 {[%clk 0:02:58.4]} 3. d3 {[%clk 0:02:59]} 3... Nf6 {[%clk 0:02:58.4]} 4.
Bg2 {[%clk 0:02:58.9]} 4... d6 {[%clk 0:02:58]} 5. O-O {[%clk 0:02:58.4]} 5...
g6 {[%clk 0:02:58.3]} 6. c4 {[%clk 0:02:58.2]} 6... Bg7 {[%clk 0:02:58.8]} 7.
Nc3 {[%clk 0:02:58.3]} 7... O-O {[%clk 0:02:59.3]} 8. Bg5 {[%clk 0:02:58.2]}
8... Be6 {[%clk 0:02:58.3]} 9. Nd5 {[%clk 0:02:56.6]} 9... Bxd5 {[%clk
0:02:51.3]} 10. cxd5 {[%clk 0:02:56]} 10... Ne7 {[%clk 0:02:52.2]} 11. e4 {[%clk
0:02:54.8]} 11... h6 {[%clk 0:02:50.9]} 12. Bd2 {[%clk 0:02:53.2]} 12... c6
{[%clk 0:02:50.1]} 13. dxc6 {[%clk 0:02:52.4]} 13... Nxc6 {[%clk 0:02:49.1]} 14.
b4 {[%clk 0:02:46.9]} 14... Qd7 {[%clk 0:02:44]} 15. b5 {[%clk 0:02:44.8]} 15...
Nd8 {[%clk 0:02:44.3]} 16. a4 {[%clk 0:02:44.1]} 16... Ne6 {[%clk 0:02:44.4]}
17. Bb4 {[%clk 0:02:43.5]} 17... Rac8 {[%clk 0:02:43.2]} 18. Bh3 {[%clk
0:02:41.8]} 18... Rc7 {[%clk 0:02:18.2]} 19. Kg2 {[%clk 0:02:33.2]} 19... Nh5
{[%clk 0:02:12.3]} 20. Kh1 {[%clk 0:02:23.1]} 20... Rfc8 {[%clk 0:02:02.6]} 21.
Nh4 {[%clk 0:02:06.3]} 21... Qe7 {[%clk 0:01:42.5]} 22. Nf5 {[%clk 0:02:01.9]}
22... gxf5 {[%clk 0:01:30.7]} 23. Qxh5 {[%clk 0:02:01.4]} 23... fxe4 {[%clk
0:01:31.2]} 24. dxe4 {[%clk 0:01:59.2]} 24... Rc4 {[%clk 0:01:31.3]} 25. Bd2
{[%clk 0:01:49]} 25... Qf6 {[%clk 0:01:11.7]} 26. Bf5 {[%clk 0:01:44.2]} 26...
Rc2 {[%clk 0:01:10]} 27. Be3 {[%clk 0:01:42.3]} 27... R8c3 {[%clk 0:01:05.9]}
28. Rad1 {[%clk 0:01:35.1]} 28... Nd4 {[%clk 0:01:04]} 29. Bxd4 {[%clk
0:01:28.6]} 29... exd4 {[%clk 0:01:03.9]} 30. e5 {[%clk 0:01:27.9]} 30... dxe5
{[%clk 0:01:04.8]} 31. Bxc2 {[%clk 0:01:27.7]} 31... Rxc2 {[%clk 0:01:05.6]} 32.
Kg2 {[%clk 0:01:15.1]} 32... e4 {[%clk 0:01:02.2]} 33. Qg4 {[%clk 0:01:13.8]}
33... e3 {[%clk 0:01:00.5]} 34. Rc1 {[%clk 0:00:47.2]} 34... Rxf2+ {[%clk
0:00:35.7]} 35. Rxf2 {[%clk 0:00:45.5]} 35... Qxf2+ {[%clk 0:00:35.8]} 36. Kh3
{[%clk 0:00:45.2]} 36... e2 {[%clk 0:00:35.9]} 37. Rc8+ {[%clk 0:00:43.4]} 37...
Kh7 {[%clk 0:00:36.1]} 38. Qe4+ {[%clk 0:00:41.5]} 38... f5 {[%clk 0:00:35.8]}
39. Qe6 {[%clk 0:00:37.4]} 39... e1=Q {[%clk 0:00:18.2]} 40. Qg8+ {[%clk
0:00:35.4]} 40... Kg6 {[%clk 0:00:18.5]} 41. Rc7 {[%clk 0:00:33.5]} 41... Qef1+
{[%clk 0:00:17.3]} 0-1

[Event "*** Titled Tuesday Blitz"]
[Site "Chess.com"]
[Date "2020.11.24"]
[Round "3"]
[White "Loy_Konstantin"]
[Black "GelmanAlexander"]
[Result "0-1"]
[WhiteElo "2393"]
[BlackElo "2568"]
[TimeControl "180+1"]
[EndTime "10:44:36 PST"]
[Termination "GelmanAlexander won by resignation"]

1. e4 {[%clk 0:03:00.9]} 1... c5 {[%clk 0:02:54.3]} 2. Nf3 {[%clk 0:03:00.6]}
2... e6 {[%clk 0:02:54.3]} 3. d3 {[%clk 0:03:00.6]} 3... Nc6 {[%clk 0:02:54]} 4.
g3 {[%clk 0:03:00.8]} 4... Nf6 {[%clk 0:02:53.7]} 5. Bg2 {[%clk 0:03:01]} 5...
d5 {[%clk 0:02:49.5]} 6. Nbd2 {[%clk 0:03:00.7]} 6... Be7 {[%clk 0:02:49.5]} 7.
O-O {[%clk 0:03:00.8]} 7... O-O {[%clk 0:02:49.1]} 8. Re1 {[%clk 0:03:01]} 8...
a5 {[%clk 0:02:48.9]} 9. e5 {[%clk 0:02:57.9]} 9... Nd7 {[%clk 0:02:47.1]} 10.
Nf1 {[%clk 0:02:58.5]} 10... a4 {[%clk 0:02:47.1]} 11. a3 {[%clk 0:02:54.9]}
11... b5 {[%clk 0:02:45.8]} 12. h4 {[%clk 0:02:55]} 12... b4 {[%clk 0:02:45.4]}
13. h5 {[%clk 0:02:55.3]} 13... h6 {[%clk 0:02:44.7]} 14. Bf4 {[%clk 0:02:45.6]}
14... bxa3 {[%clk 0:02:19.4]} 15. bxa3 {[%clk 0:02:45.4]} 15... Rb8 {[%clk
0:02:17.1]} 16. Qc1 {[%clk 0:02:35.7]} 16... Nd4 {[%clk 0:02:07.3]} 17. N1h2
{[%clk 0:02:18.9]} 17... Rb6 {[%clk 0:01:50.8]} 18. Nxd4 {[%clk 0:02:03.7]}
18... cxd4 {[%clk 0:01:50.8]} 19. Nf3 {[%clk 0:02:04.2]} 19... Bc5 {[%clk
0:01:34.3]} 20. g4 {[%clk 0:01:59.7]} 20... f6 {[%clk 0:01:30]} 21. exf6 {[%clk
0:01:50.4]} 21... Qxf6 {[%clk 0:01:18.2]} 22. Bg3 {[%clk 0:01:48.6]} 22... Bd6
{[%clk 0:01:11]} 23. Bxd6 {[%clk 0:01:37.6]} 23... Rxd6 {[%clk 0:01:11.9]} 24.
g5 {[%clk 0:01:06.1]} 24... hxg5 {[%clk 0:01:07.8]} 25. Qxg5 {[%clk 0:01:07]}
25... e5 {[%clk 0:00:59.2]} 26. Qg3 {[%clk 0:00:36.7]} 26... e4 {[%clk
0:00:48.6]} 27. dxe4 {[%clk 0:00:34.5]} 27... dxe4 {[%clk 0:00:49.5]} 28. Rxe4
{[%clk 0:00:34.5]} 28... Bb7 {[%clk 0:00:49.9]} 29. Rg4 {[%clk 0:00:28.6]} 29...
Bxf3 {[%clk 0:00:37.6]} 30. Bxf3 {[%clk 0:00:28.6]} 30... Qxf3 {[%clk
0:00:37.8]} 31. Rxg7+ {[%clk 0:00:28]} 31... Kh8 {[%clk 0:00:38.2]} 32. Qxf3
{[%clk 0:00:26.7]} 32... Rxf3 {[%clk 0:00:37.1]} 33. Rg4 {[%clk 0:00:20.7]}
33... Ne5 {[%clk 0:00:35.1]} 34. Rg3 {[%clk 0:00:18.7]} 34... Rc6 {[%clk
0:00:26.4]} 35. Rd1 {[%clk 0:00:12.2]} 35... Rxc2 {[%clk 0:00:24.6]} 36. Rxd4
{[%clk 0:00:11.4]} 36... Rxg3+ {[%clk 0:00:24.6]} 0-1

[Event "*** Titled Tuesday Blitz"]
[Site "Chess.com"]
[Date "2020.11.24"]
[Round "3"]
[White "WonderChampion"]
[Black "kanzaww"]
[Result "0-1"]
[WhiteElo "2048"]
[BlackElo "2471"]
[TimeControl "180+1"]
[EndTime "10:44:36 PST"]
[Termination "kanzaww won by checkmate"]

1. d4 {[%clk 0:03:00.9]} 1... d5 {[%clk 0:02:59.4]} 2. Nf3 {[%clk 0:02:58.6]}
2... Nf6 {[%clk 0:02:58.8]} 3. e3 {[%clk 0:02:54.6]} 3... c5 {[%clk 0:02:55.9]}
4. dxc5 {[%clk 0:02:54]} 4... Nc6 {[%clk 0:02:42.9]} 5. c4 {[%clk 0:02:51.1]}
5... e5 {[%clk 0:01:53.6]} 6. cxd5 {[%clk 0:02:48.7]} 6... Qxd5 {[%clk
0:01:30.2]} 7. Qxd5 {[%clk 0:02:46.6]} 7... Nxd5 {[%clk 0:01:29.8]} 8. Bb5
{[%clk 0:02:45.4]} 8... f6 {[%clk 0:01:17.1]} 9. O-O {[%clk 0:02:41.2]} 9...
Bxc5 {[%clk 0:01:17.1]} 10. Rd1 {[%clk 0:02:40]} 10... Nc7 {[%clk 0:01:00.5]}
11. Bc4 {[%clk 0:02:20.3]} 11... Bg4 {[%clk 0:00:51.1]} 12. Nc3 {[%clk 0:02:17]}
12... Ke7 {[%clk 0:00:29.8]} 13. b3 {[%clk 0:02:07.9]} 13... Rhd8 {[%clk
0:00:27.4]} 14. Bb2 {[%clk 0:02:06.1]} 14... Rxd1+ {[%clk 0:00:19.9]} 15. Rxd1
{[%clk 0:02:07]} 15... Rd8 {[%clk 0:00:20]} 16. Rc1 {[%clk 0:02:02.3]} 16... Bb4
{[%clk 0:00:15.2]} 17. Ne2 {[%clk 0:01:52.2]} 17... Bxf3 {[%clk 0:00:13.6]} 18.
gxf3 {[%clk 0:01:51.5]} 18... Rd2 {[%clk 0:00:13.8]} 19. Bc3 {[%clk 0:01:49.6]}
19... Bxc3 {[%clk 0:00:13.6]} 20. Nxc3 {[%clk 0:01:49.7]} 20... Na5 {[%clk
0:00:12.9]} 21. Bf1 {[%clk 0:01:44.5]} 21... Nc6 {[%clk 0:00:12.4]} 22. f4
{[%clk 0:01:39.8]} 22... exf4 {[%clk 0:00:11.8]} 23. exf4 {[%clk 0:01:40.7]}
23... Ne6 {[%clk 0:00:11.6]} 24. Re1 {[%clk 0:01:37]} 24... f5 {[%clk
0:00:06.3]} 25. Bc4 {[%clk 0:01:34.8]} 25... Nd4 {[%clk 0:00:06.7]} 26. Nd5+
{[%clk 0:01:32.5]} 26... Kd6 {[%clk 0:00:06.5]} 27. Kg2 {[%clk 0:01:29.5]} 27...
b5 {[%clk 0:00:06.7]} 28. Ne3 {[%clk 0:01:15.4]} 28... Nxf4+ {[%clk 0:00:05.5]}
29. Kf1 {[%clk 0:01:11.9]} 29... Nf3 {[%clk 0:00:03.1]} 30. Nxf5+ {[%clk
0:01:05.7]} 30... Kc7 {[%clk 0:00:02.3]} 31. Re7+ {[%clk 0:00:39.5]} 31... Kd8
{[%clk 0:00:01.9]} 32. Bxb5 {[%clk 0:00:23.9]} 32... Rd1+ {[%clk 0:00:01.7]} 33.
Re1 {[%clk 0:00:22.5]} 33... Rxe1# {[%clk 0:00:02.2]} 0-1

[Event "*** Titled Tuesday Blitz"]
[Site "Chess.com"]
[Date "2020.11.24"]
[Round "3"]
[White "Caisachess"]
[Black "Gevo1990"]
[Result "0-1"]
[WhiteElo "2393"]
[BlackElo "2577"]
[TimeControl "180+1"]
[EndTime "10:44:38 PST"]
[Termination "Gevo1990 won by resignation"]

1. e4 {[%clk 0:03:00.7]} 1... c5 {[%clk 0:02:52.5]} 2. c3 {[%clk 0:03:00.6]}
2... Nf6 {[%clk 0:02:48.7]} 3. e5 {[%clk 0:03:00.5]} 3... Nd5 {[%clk 0:02:48.7]}
4. d4 {[%clk 0:03:01.4]} 4... d6 {[%clk 0:02:47.2]} 5. Nf3 {[%clk 0:03:02.3]}
5... e6 {[%clk 0:02:43.4]} 6. a3 {[%clk 0:03:00.9]} 6... Nb6 {[%clk 0:02:41.5]}
7. Bd3 {[%clk 0:03:00.8]} 7... Nc6 {[%clk 0:02:39.8]} 8. O-O {[%clk 0:03:00]}
8... Be7 {[%clk 0:02:37.4]} 9. Qe2 {[%clk 0:02:56.3]} 9... d5 {[%clk 0:02:34.3]}
10. Be3 {[%clk 0:02:44.2]} 10... c4 {[%clk 0:02:30.3]} 11. Bc2 {[%clk
0:02:43.4]} 11... Bd7 {[%clk 0:02:31.2]} 12. Nbd2 {[%clk 0:02:40.3]} 12... Na5
{[%clk 0:02:30.7]} 13. Ne1 {[%clk 0:02:36.1]} 13... Ba4 {[%clk 0:02:29.9]} 14.
Bb1 {[%clk 0:02:24.2]} 14... Qd7 {[%clk 0:02:26.7]} 15. f4 {[%clk 0:02:23.4]}
15... g6 {[%clk 0:02:26.9]} 16. Nc2 {[%clk 0:02:11.3]} 16... h5 {[%clk
0:02:16.2]} 17. Nb4 {[%clk 0:02:09.9]} 17... O-O-O {[%clk 0:02:15.3]} 18. Ba2
{[%clk 0:02:01.1]} 18... Kb8 {[%clk 0:02:14.5]} 19. Rae1 {[%clk 0:01:57.7]}
19... h4 {[%clk 0:02:13.8]} 20. h3 {[%clk 0:01:56]} 20... Rdg8 {[%clk
0:02:11.8]} 21. Nf3 {[%clk 0:01:53.7]} 21... Nc8 {[%clk 0:02:05.2]} 22. Ng5
{[%clk 0:01:51.6]} 22... Rg7 {[%clk 0:02:02.2]} 23. Bc1 {[%clk 0:01:35.5]} 23...
Bd8 {[%clk 0:02:01.5]} 24. Nc2 {[%clk 0:01:28.9]} 24... Bxc2 {[%clk 0:01:52.7]}
25. Qxc2 {[%clk 0:01:28.4]} 25... Ne7 {[%clk 0:01:53.3]} 26. Bb1 {[%clk
0:01:23.9]} 26... Nf5 {[%clk 0:01:52.7]} 27. Rf3 {[%clk 0:01:18.2]} 27... Nb3
{[%clk 0:01:51.5]} 28. Ba2 {[%clk 0:01:12]} 28... Nxc1 {[%clk 0:01:47.3]} 29.
Qxc1 {[%clk 0:01:11.6]} 29... Rh5 {[%clk 0:01:46.4]} 30. Bb1 {[%clk 0:01:10.2]}
30... Bxg5 {[%clk 0:01:45.7]} 31. fxg5 {[%clk 0:01:10.4]} 31... Qe7 {[%clk
0:01:46]} 32. Ref1 {[%clk 0:00:59.4]} 32... Rxg5 {[%clk 0:01:44.3]} 33. Bxf5
{[%clk 0:00:56]} 33... gxf5 {[%clk 0:01:43.6]} 34. R1f2 {[%clk 0:00:56]} 34...
Qd8 {[%clk 0:01:27.2]} 35. Qf4 {[%clk 0:00:54.9]} 35... Qg8 {[%clk 0:01:22.4]}
36. Qd2 {[%clk 0:00:50.9]} 36... Rg3 {[%clk 0:01:18.5]} 37. Kh2 {[%clk
0:00:46.9]} 37... a5 {[%clk 0:01:14.1]} 38. Rf4 {[%clk 0:00:42]} 38... Rd3
{[%clk 0:01:09.5]} 39. Qe2 {[%clk 0:00:37.9]} 39... Qh8 {[%clk 0:01:06.2]} 40.
R2f3 {[%clk 0:00:34.7]} 40... Rg3 {[%clk 0:01:05.1]} 41. Rxd3 {[%clk 0:00:33.3]}
41... cxd3 {[%clk 0:01:04.9]} 42. Qf2 {[%clk 0:00:29.6]} 42... Qh6 {[%clk
0:01:03.2]} 43. Kg1 {[%clk 0:00:26.1]} 43... Qg5 {[%clk 0:01:03.1]} 44. Kf1
{[%clk 0:00:25.7]} 44... Rxg2 {[%clk 0:01:01.8]} 45. Qxg2 {[%clk 0:00:22.5]}
45... Qxf4+ {[%clk 0:01:00.8]} 46. Qf2 {[%clk 0:00:22.7]} 46... Qc1+ {[%clk
0:00:59.9]} 47. Kg2 {[%clk 0:00:23]} 47... Qc2 {[%clk 0:00:56.9]} 48. Kf3 {[%clk
0:00:21.9]} 48... d2 {[%clk 0:00:55]} 0-1

[Event "*** Titled Tuesday Blitz"]
[Site "Chess.com"]
[Date "2020.11.24"]
[Round "3"]
[White "Harry_Rakkel"]
[Black "Rhinos1"]
[Result "1-0"]
[WhiteElo "2501"]
[BlackElo "2221"]
[TimeControl "180+1"]
[EndTime "10:44:39 PST"]
[Termination "Harry_Rakkel won on time"]

1. c4 {[%clk 0:03:00.9]} 1... e5 {[%clk 0:02:57.4]} 2. e3 {[%clk 0:02:59.4]}
2... d6 {[%clk 0:02:53.9]} 3. Nc3 {[%clk 0:02:57.9]} 3... Nf6 {[%clk 0:02:52.4]}
4. b3 {[%clk 0:02:52.3]} 4... Nbd7 {[%clk 0:02:52.2]} 5. Bb2 {[%clk 0:02:51.8]}
5... Be7 {[%clk 0:02:51.3]} 6. Qc2 {[%clk 0:02:49.6]} 6... O-O {[%clk 0:02:48]}
7. Nf3 {[%clk 0:02:49]} 7... c6 {[%clk 0:02:46.1]} 8. d4 {[%clk 0:02:47.2]} 8...
a6 {[%clk 0:02:30.7]} 9. Be2 {[%clk 0:02:41.9]} 9... Qc7 {[%clk 0:02:30]} 10.
O-O {[%clk 0:02:41.1]} 10... Re8 {[%clk 0:02:27.7]} 11. Rfd1 {[%clk 0:02:38.6]}
11... Nf8 {[%clk 0:02:16.7]} 12. dxe5 {[%clk 0:02:35.3]} 12... dxe5 {[%clk
0:02:17.6]} 13. Na4 {[%clk 0:02:19.2]} 13... Ng6 {[%clk 0:02:14.3]} 14. c5
{[%clk 0:02:16.6]} 14... Bg4 {[%clk 0:01:55.7]} 15. h3 {[%clk 0:02:15]} 15...
Bxf3 {[%clk 0:01:53.6]} 16. Bxf3 {[%clk 0:02:15.9]} 16... e4 {[%clk 0:01:43.2]}
17. Be2 {[%clk 0:02:14.5]} 17... Rad8 {[%clk 0:01:42.6]} 18. b4 {[%clk
0:02:07.1]} 18... Nd5 {[%clk 0:01:34.8]} 19. Qb3 {[%clk 0:01:55.9]} 19... Bf6
{[%clk 0:01:23.5]} 20. Bc4 {[%clk 0:01:43.1]} 20... Bxb2 {[%clk 0:01:19.6]} 21.
Nxb2 {[%clk 0:01:44]} 21... Qe5 {[%clk 0:01:16.7]} 22. Rd4 {[%clk 0:01:39.6]}
22... Nh4 {[%clk 0:01:09.8]} 23. Qd1 {[%clk 0:01:24.1]} 23... h5 {[%clk
0:00:56.6]} 24. Kh1 {[%clk 0:01:05.4]} 24... Re6 {[%clk 0:00:55.3]} 25. Bf1
{[%clk 0:01:02]} 25... Rde8 {[%clk 0:00:45.1]} 26. Nc4 {[%clk 0:00:59.4]} 26...
Qg5 {[%clk 0:00:43.7]} 27. Nd6 {[%clk 0:00:56.7]} 27... R8e7 {[%clk 0:00:41.2]}
28. Qc2 {[%clk 0:00:49.4]} 28... Rg6 {[%clk 0:00:38.7]} 29. Nxe4 {[%clk
0:00:48.7]} 29... Qf5 {[%clk 0:00:25.6]} 30. Rc1 {[%clk 0:00:46.5]} 30... Nf3
{[%clk 0:00:03.9]} 31. gxf3 {[%clk 0:00:18.5]} 31... Qxh3+ {[%clk 0:00:03.6]}
32. Bxh3 {[%clk 0:00:17.5]} 1-0

[Event "*** Titled Tuesday Blitz"]
[Site "Chess.com"]
[Date "2020.11.24"]
[Round "3"]
[White "Arkady_Gitelson"]
[Black "Andreikka"]
[Result "1-0"]
[WhiteElo "2618"]
[BlackElo "2879"]
[TimeControl "180+1"]
[EndTime "10:44:40 PST"]
[Termination "Arkady_Gitelson won on time"]

1. Nf3 {[%clk 0:03:00.9]} 1... c6 {[%clk 0:02:58.2]} 2. g3 {[%clk 0:03:01.8]}
2... d5 {[%clk 0:02:57.7]} 3. Bg2 {[%clk 0:03:02.7]} 3... g6 {[%clk 0:02:56.2]}
4. O-O {[%clk 0:03:03.6]} 4... Bg7 {[%clk 0:02:56.1]} 5. d4 {[%clk 0:03:04.3]}
5... Nf6 {[%clk 0:02:56.4]} 6. Ne5 {[%clk 0:03:04.6]} 6... O-O {[%clk 0:02:56]}
7. c4 {[%clk 0:03:04.7]} 7... Nbd7 {[%clk 0:02:50.3]} 8. Nc3 {[%clk 0:03:04]}
8... e6 {[%clk 0:02:47]} 9. f4 {[%clk 0:03:03.2]} 9... dxc4 {[%clk 0:02:29.7]}
10. Nxc4 {[%clk 0:03:02.7]} 10... Nd5 {[%clk 0:02:22.4]} 11. e4 {[%clk
0:03:01.2]} 11... Ne7 {[%clk 0:02:22.7]} 12. Be3 {[%clk 0:02:44.7]} 12... b6
{[%clk 0:02:22.6]} 13. Nd6 {[%clk 0:02:30.1]} 13... Ba6 {[%clk 0:02:21.9]} 14.
Rf2 {[%clk 0:02:30.3]} 14... Nc8 {[%clk 0:01:53.7]} 15. Qa4 {[%clk 0:02:05]}
15... Nxd6 {[%clk 0:01:51.1]} 16. Qxa6 {[%clk 0:02:04]} 16... Rc8 {[%clk
0:01:47.6]} 17. Rd1 {[%clk 0:01:57.4]} 17... b5 {[%clk 0:01:41.1]} 18. b3 {[%clk
0:01:38.8]} 18... b4 {[%clk 0:01:30.2]} 19. Ne2 {[%clk 0:01:12.9]} 19... Nb5
{[%clk 0:01:13.2]} 20. Qa4 {[%clk 0:01:11.2]} 20... a5 {[%clk 0:01:08.2]} 21. d5
{[%clk 0:00:50]} 21... exd5 {[%clk 0:00:58.8]} 22. exd5 {[%clk 0:00:47.3]} 22...
Nb6 {[%clk 0:00:57.3]} 23. Qxa5 {[%clk 0:00:28.9]} 23... Nxd5 {[%clk 0:00:54.1]}
24. Qxd8 {[%clk 0:00:29.8]} 24... Rfxd8 {[%clk 0:00:53.3]} 25. Bc5 {[%clk
0:00:29.6]} 25... Bf8 {[%clk 0:00:37.4]} 26. Rc1 {[%clk 0:00:21.3]} 26... Ndc3
{[%clk 0:00:35.1]} 27. Bxf8 {[%clk 0:00:20.9]} 27... Kxf8 {[%clk 0:00:33.3]} 28.
a4 {[%clk 0:00:20.1]} 28... Nxe2+ {[%clk 0:00:31]} 29. Rxe2 {[%clk 0:00:21]}
29... Nc3 {[%clk 0:00:31.4]} 30. Rec2 {[%clk 0:00:17.5]} 30... c5 {[%clk
0:00:30.2]} 31. Bf1 {[%clk 0:00:17.5]} 1-0

[Event "*** Titled Tuesday Blitz"]
[Site "Chess.com"]
[Date "2020.11.24"]
[Round "3"]
[White "Escanor89"]
[Black "Zajdanek"]
[Result "1-0"]
[WhiteElo "2521"]
[BlackElo "2324"]
[TimeControl "180+1"]
[EndTime "10:44:40 PST"]
[Termination "Escanor89 won by resignation"]

1. Nf3 {[%clk 0:03:00.9]} 1... d5 {[%clk 0:02:59.4]} 2. c4 {[%clk 0:03:00.6]}
2... c6 {[%clk 0:03:00.2]} 3. e3 {[%clk 0:02:58.5]} 3... e6 {[%clk 0:03:00.6]}
4. d4 {[%clk 0:02:57.8]} 4... Bd6 {[%clk 0:02:59.7]} 5. b3 {[%clk 0:02:54.6]}
5... f5 {[%clk 0:02:59.3]} 6. Bd3 {[%clk 0:02:48.5]} 6... Nf6 {[%clk 0:02:59.3]}
7. Bb2 {[%clk 0:02:48.6]} 7... O-O {[%clk 0:02:59.3]} 8. O-O {[%clk 0:02:48.3]}
8... Qe7 {[%clk 0:02:58.8]} 9. a4 {[%clk 0:02:44.6]} 9... a5 {[%clk 0:02:58.9]}
10. Ba3 {[%clk 0:02:41.5]} 10... Bxa3 {[%clk 0:02:55.8]} 11. Nxa3 {[%clk
0:02:41.3]} 11... b6 {[%clk 0:02:56.4]} 12. Rc1 {[%clk 0:02:37]} 12... Bb7
{[%clk 0:02:55.5]} 13. Nb1 {[%clk 0:02:29.6]} 13... Na6 {[%clk 0:02:54.9]} 14.
Ne5 {[%clk 0:02:17.1]} 14... Nb4 {[%clk 0:02:54.4]} 15. Nc3 {[%clk 0:02:16.6]}
15... Rac8 {[%clk 0:02:52.7]} 16. Qe2 {[%clk 0:02:15.4]} 16... c5 {[%clk
0:02:52.5]} 17. cxd5 {[%clk 0:02:10]} 17... Nfxd5 {[%clk 0:02:50.2]} 18. Nxd5
{[%clk 0:02:06.3]} 18... exd5 {[%clk 0:02:50.6]} 19. Bb5 {[%clk 0:02:00.2]}
19... f4 {[%clk 0:02:41]} 20. g3 {[%clk 0:01:39.1]} 20... cxd4 {[%clk
0:02:13.3]} 21. exd4 {[%clk 0:01:37.9]} 21... Rxc1 {[%clk 0:02:05.4]} 22. Rxc1
{[%clk 0:01:37]} 22... fxg3 {[%clk 0:02:01.5]} 23. hxg3 {[%clk 0:01:34.9]} 23...
Bc8 {[%clk 0:01:51.8]} 24. Bd3 {[%clk 0:01:20.2]} 24... Nxd3 {[%clk 0:01:38.5]}
25. Qxd3 {[%clk 0:01:18.5]} 25... Bf5 {[%clk 0:01:38.4]} 26. Qe3 {[%clk
0:01:08.1]} 26... h6 {[%clk 0:01:28]} 27. Rc6 {[%clk 0:01:04.1]} 27... Qa3
{[%clk 0:01:14.8]} 28. Rxb6 {[%clk 0:00:34.1]} 28... Be4 {[%clk 0:01:13.6]} 29.
Rc6 {[%clk 0:00:27.2]} 29... Qa1+ {[%clk 0:00:50.2]} 30. Rc1 {[%clk 0:00:26.1]}
30... Qb2 {[%clk 0:00:50.7]} 31. Rf1 {[%clk 0:00:19]} 31... Rb8 {[%clk
0:00:46.1]} 32. Qf4 {[%clk 0:00:18.2]} 32... Qxd4 {[%clk 0:00:33.2]} 33. Nc6
{[%clk 0:00:16.6]} 33... g5 {[%clk 0:00:15.2]} 34. Qxb8+ {[%clk 0:00:15.4]} 1-0